bitfinex-derivatives/quotes_BTCF0:USTF0_20250922
["timestamp","ask_amount","ask_price","bid_price","bid_amount"]
[1758502286861,0.2864608,114370.0,114350.0,0.0873833]
[1758502287064,0.3608,114360.0,114350.0,0.0873867]
[1758502287260,0.3608,114360.0,114350.0,1.3547267]
[1758502287452,0.2864608,114370.0,114360.0,0.0877791]
[1758502287659,0.2864608,114370.0,114360.0,0.0873791]
[1758502287858,0.2864608,114370.0,114360.0,0.0877791]
[1758502288157,0.2864608,114370.0,114360.0,0.3513291]
[1758502288459,0.4322448,114380.0,114370.0,0.0998717]
[1758502288665,0.4322448,114380.0,114370.0,1.1031917]
[1758502288866,0.3608,114390.0,114380.0,0.0873642]
[1758502289260,0.3608,114390.0,114380.0,1.0903242]
[1758502289456,0.3608,114400.0,114390.0,0.0873566]
[1758502289664,0.3608,114420.0,114400.0,0.1008991]
[1758502289857,0.3608,114420.0,114410.0,1.0897414]
[1758502290063,0.38089144,114430.0,114420.0,0.0873338]
[1758502290275,4e-08,114430.0,114420.0,0.36983321]
[1758502290564,0.36964637,114430.0,114400.0,0.01355]
[1758502290774,0.3608,114420.0,114410.0,0.0873381]
[1758502290960,0.37465,114420.0,114410.0,1.0886981]
[1758502291263,0.28446078,114420.0,114410.0,1.0886981]
[1758502291469,0.28446078,114420.0,114410.0,1.0879381]
[1758502291770,0.00877365,114430.0,114420.0,0.0873339]
[1758502291961,0.00877365,114430.0,114410.0,0.4616898]
[1758502292162,0.3608,114420.0,114400.0,0.1002434]
[1758502292473,0.3598,114410.0,114400.0,0.0873453]
[1758502292771,0.3598,114410.0,114400.0,1.0867483]
[1758502292968,0.3598,114410.0,114400.0,1.0863483]
[1758502293163,0.37565,114420.0,114410.0,0.0873406]
[1758502293164,0.001,114420.0,114410.0,0.0873406]
[1758502293460,4e-08,114430.0,114420.0,0.087333]
[1758502293675,4e-08,114430.0,114420.0,1.446533]
[1758502293868,0.3608,114450.0,114440.0,0.0873176]
[1758502294267,0.3608,114450.0,114440.0,1.0849576]
[1758502294971,0.36951343,114450.0,114440.0,1.0849576]
[1758502295277,0.3608,114450.0,114440.0,1.0849576]
[1758502295464,0.36962465,114450.0,114440.0,1.0847576]
[1758502295962,0.3608,114450.0,114440.0,1.36725701]
[1758502296163,0.38134406,114470.0,114460.0,0.087303]
[1758502296474,0.38134406,114470.0,114460.0,1.096523]
[1758502296678,6e-08,114470.0,114460.0,1.97732241]
[1758502297265,0.0001,114480.0,114470.0,0.0997955]
[1758502297570,0.3609,114490.0,114480.0,0.0872879]
[1758502297761,0.37465,114490.0,114480.0,1.0817679]
[1758502297962,0.37465,114490.0,114480.0,1.0821679]
[1758502298362,0.37465,114490.0,114480.0,1.0819679]
[1758502298363,0.3608,114490.0,114480.0,1.0819679]
[1758502298564,0.3608,114490.0,114480.0,0.0876879]
[1758502299275,0.3608,114490.0,114480.0,1.0809279]
[1758502299473,0.3608,114490.0,114480.0,0.0872879]
[1758502299474,0.3658,114490.0,114480.0,0.0872879]
[1758502299663,0.6158,114490.0,114480.0,1.0799679]
[1758502299864,0.005,114490.0,114480.0,1.36206731]
[1758502300167,0.005,114490.0,114480.0,1.97246731]
[1758502300371,0.005,114490.0,114480.0,0.7109879]
[1758502300563,0.005,114490.0,114480.0,1.3412679]
[1758502300771,0.005,114490.0,114480.0,1.97206731]
[1758502301176,0.005,114490.0,114480.0,0.98098731]
[1758502301375,0.3658,114490.0,114480.0,0.0872879]
[1758502301574,0.3658,114490.0,114480.0,1.0776479]
[1758502301770,0.6158,114490.0,114480.0,1.0776079]
[1758502302069,0.6158,114490.0,114480.0,1.34760731]
[1758502302070,0.3658,114490.0,114480.0,1.34760731]
[1758502302274,0.005,114490.0,114480.0,1.97090731]
[1758502302567,0.005,114490.0,114480.0,1.97126731]
[1758502302773,0.005,114490.0,114480.0,1.61022731]
[1758502303070,0.005,114490.0,114480.0,0.62018731]
[1758502303567,0.3658,114490.0,114480.0,0.0876879]
[1758502303774,0.3658,114490.0,114480.0,1.0760079]
[1758502304066,0.3658,114490.0,114480.0,1.0759679]
[1758502304270,0.3658,114490.0,114480.0,0.0876879]
[1758502304668,0.6158,114490.0,114480.0,0.0876879]
[1758502305069,0.62965,114490.0,114480.0,0.0004]
[1758502305279,0.62965,114490.0,114480.0,1.0739279]
[1758502305569,0.3658,114490.0,114480.0,1.34392731]
[1758502305769,0.3658,114490.0,114480.0,1.0739279]
[1758502305973,0.005,114490.0,114480.0,1.71722731]
[1758502306366,0.005,114490.0,114480.0,1.96722731]
[1758502307773,0.005,114490.0,114480.0,1.0844279]
[1758502307976,0.005,114490.0,114480.0,0.0997879]
[1758502308274,0.3658,114490.0,114480.0,0.1001879]
[1758502308477,0.3658,114490.0,114480.0,1.0825479]
[1758502308688,0.3658,114490.0,114480.0,1.35266731]
[1758502309079,0.3658,114490.0,114480.0,0.1001879]
[1758502309379,0.3658,114490.0,114480.0,1.0810679]
[1758502309678,0.3658,114490.0,114480.0,1.35106731]
[1758502309871,0.005,114490.0,114480.0,1.35106731]
[1758502310073,0.3609,114500.0,114490.0,0.1008306]
[1758502310074,0.0001,114500.0,114490.0,0.1008306]
[1758502310278,0.3608,114510.0,114500.0,0.099773]
[1758502310468,0.3608,114510.0,114500.0,1.35033241]
[1758502310664,0.3608,114520.0,114510.0,0.0997653]
[1758502310869,0.3608,114520.0,114510.0,0.36976471]
[1758502311081,0.3608,114520.0,114510.0,0.0997653]
[1758502311376,0.3608,114520.0,114510.0,0.0872653]
[1758502311572,0.3608,114520.0,114510.0,1.0672253]
[1758502311769,0.01385,114510.0,114490.0,0.0004]
[1758502311974,0.7216,114500.0,114490.0,0.0872763]
[1758502312272,0.7216,114500.0,114490.0,0.0876763]
[1758502312467,0.9716,114500.0,114490.0,1.0655963]
[1758502312665,0.9716,114500.0,114490.0,1.0659963]
[1758502312878,0.9716,114500.0,114490.0,0.0876763]
[1758502313176,0.9716,114500.0,114490.0,1.0659963]
[1758502314175,0.9716,114500.0,114490.0,1.0669563]
[1758502314474,0.73533,114500.0,114490.0,0.0882763]
[1758502314679,0.73533,114500.0,114490.0,1.0647563]
[1758502314875,0.98933,114500.0,114490.0,0.001]
[1758502315074,0.98933,114500.0,114490.0,0.97824]
[1758502315272,1.25932941,114500.0,114490.0,0.001]
[1758502315474,1.25932941,114500.0,114490.0,0.00015112]
[1758502315672,0.01373,114470.0,114460.0,0.0873037]
[1758502315873,0.7216,114470.0,114460.0,1.0645437]
[1758502316379,0.7216,114470.0,114460.0,0.0877037]
[1758502316574,0.7216,114470.0,114460.0,1.0640237]
[1758502316773,0.7216,114470.0,114460.0,0.0877037]
[1758502316973,0.7216,114470.0,114460.0,1.0632237]
[1758502317375,0.7206,114470.0,114460.0,1.0632237]
[1758502317882,0.7206,114470.0,114460.0,0.0877037]
[1758502318082,0.7206,114470.0,114460.0,1.0625437]
[1758502318278,0.7226,114470.0,114460.0,1.0635437]
[1758502318479,0.002,114470.0,114460.0,1.0635437]
[1758502318776,0.002,114470.0,114460.0,2.02792008]
[1758502318982,0.002,114470.0,114460.0,1.66712008]
[1758502319185,0.002,114470.0,114460.0,2.02792008]
[1758502319485,0.37453,114490.0,114480.0,0.0872884]
[1758502319486,0.3608,114490.0,114480.0,0.0872884]
[1758502319683,0.3608,114490.0,114480.0,1.0612084]
[1758502319985,0.3608,114490.0,114480.0,1.0737084]
[1758502320189,0.3608,114490.0,114480.0,1.41373478]
[1758502320486,0.3608,114500.0,114490.0,0.1007808]
[1758502320681,0.3608,114500.0,114490.0,0.44080718]
[1758502320886,0.3608,114520.0,114500.0,0.0872734]
[1758502321080,0.3608,114520.0,114510.0,1.0596657]
[1758502321280,0.3608,114520.0,114510.0,1.41219208]
[1758502321478,0.3608,114530.0,114520.0,0.0872581]
[1758502321677,0.3608,114530.0,114520.0,0.42728448]
[1758502321884,0.3608,114530.0,114520.0,0.43978448]
[1758502322691,0.3608,114530.0,114520.0,1.39888448]
[1758502322990,0.3608,114540.0,114530.0,0.0872506]
[1758502323187,0.3608,114550.0,114540.0,0.087243]
[1758502323387,0.3608,114550.0,114540.0,1.39770938]
[1758502323584,0.3608,114550.0,114540.0,1.057683]
[1758502324495,0.3698,114550.0,114540.0,1.39870938]
[1758502324790,0.63353,114550.0,114540.0,1.057123]
[1758502325085,0.63353,114550.0,114540.0,1.057523]
[1758502325490,0.63353,114550.0,114540.0,0.96928]
[1758502325787,0.63353,114550.0,114540.0,0.0014]
[1758502325983,0.63353,114550.0,114540.0,0.96864]
[1758502325984,0.9971564,114550.0,114540.0,0.96864]
[1758502326178,0.9881564,114550.0,114540.0,0.96764]
[1758502326379,0.9951564,114550.0,114540.0,0.9682]
[1758502326591,0.65513002,114550.0,114540.0,0.0014]
[1758502326779,0.40513002,114550.0,114540.0,1.0559229]
[1758502327487,0.38153,114550.0,114540.0,1.0559229]
[1758502328086,0.3678,114550.0,114540.0,1.39594928]
[1758502328889,0.3678,114550.0,114540.0,1.0559229]
[1758502329088,0.3678,114550.0,114540.0,1.65937928]
[1758502329287,0.007,114550.0,114540.0,1.65937928]
[1758502329687,1e-07,114550.0,114540.0,2.02017928]
[1758502330685,1e-07,114550.0,114540.0,1.6801529]
[1758502330889,1e-07,114550.0,114540.0,0.69209928]
[1758502331192,1e-07,114550.0,114540.0,0.44209928]
[1758502331386,0.3608001,114550.0,114540.0,1.40737928]
[1758502331783,0.3608001,114550.0,114540.0,1.0673529]
[1758502331995,0.3608001,114550.0,114540.0,1.0539229]
[1758502332294,0.3608001,114550.0,114540.0,1.39394928]
[1758502332493,1e-07,114550.0,114540.0,1.0677529]
[1758502332789,1e-07,114550.0,114540.0,1.40777928]
[1758502333092,1e-07,114550.0,114540.0,1.65817928]
[1758502333492,1e-07,114550.0,114540.0,1.05289928]
[1758502333696,1e-07,114550.0,114540.0,1.65773928]
[1758502333894,1e-07,114550.0,114540.0,2.01853928]
[1758502334287,0.39519238,114590.0,114570.0,0.01257]
[1758502334591,0.41874537,114590.0,114580.0,1.39167908]
[1758502334785,0.41874537,114590.0,114580.0,1.0516527]
[1758502334986,0.77262339,114590.0,114580.0,0.0872127]
[1758502335186,1.02262339,114590.0,114580.0,0.96452]
[1758502335392,0.68259701,114590.0,114580.0,1.0517326]
[1758502335599,0.34240781,114590.0,114580.0,1.40518898]
[1758502335786,0.3608,114600.0,114590.0,0.099825]
[1758502335994,0.38128093,114610.0,114600.0,0.0871974]
[1758502336196,0.38128093,114610.0,114600.0,2.89158378]
[1758502336388,0.38128093,114610.0,114600.0,2.5515574]
[1758502337093,0.98515731,114610.0,114600.0,2.5513974]
[1758502337290,1.01550339,114610.0,114600.0,0.001]
[1758502337602,1.01550339,114610.0,114600.0,1.053718]
[1758502337896,1.01550339,114610.0,114600.0,1.054118]
[1758502338500,1.01550339,114610.0,114600.0,0.088598]
[1758502338698,1.01550339,114610.0,114600.0,1.055118]
[1758502338999,0.03034608,114610.0,114600.0,1.40857438]
[1758502339188,0.3678,114610.0,114600.0,1.40857438]
[1758502339494,0.007,114610.0,114600.0,1.40857438]
[1758502339691,0.3608,114620.0,114610.0,0.0871904]
[1758502339891,0.37465,114620.0,114610.0,0.0871904]
[1758502340097,0.3608,114620.0,114610.0,0.42721678]
[1758502340494,0.37465,114620.0,114610.0,0.0871904]
[1758502341486,0.38165,114620.0,114610.0,0.0881904]
[1758502342088,0.38165,114620.0,114610.0,0.0014]
[1758502342496,0.38165,114620.0,114610.0,0.96364]
[1758502342497,0.99496228,114620.0,114610.0,0.96364]
[1758502342797,0.99496228,114620.0,114610.0,0.96404]
[1758502342998,0.99496228,114620.0,114610.0,0.96364]
[1758502343194,0.99496228,114620.0,114610.0,0.96404]
[1758502343703,0.6549359,114620.0,114610.0,1.0512306]
[1758502343898,0.4049359,114620.0,114610.0,1.0512306]
[1758502344701,0.38165,114620.0,114610.0,1.0512306]
[1758502344893,0.4049358,114620.0,114610.0,1.0512306]
[1758502345192,0.3678,114620.0,114610.0,1.0512306]
[1758502345402,0.3678,114620.0,114610.0,1.40468698]
[1758502345991,0.3678,114620.0,114610.0,1.65468698]
[1758502346186,0.3678,114620.0,114610.0,1.3146606]
[1758502346395,0.007,114620.0,114610.0,2.01548698]
[1758502347897,0.36939582,114640.0,114630.0,0.1217454]
[1758502348097,0.3608,114650.0,114640.0,0.1225977]
[1758502348298,0.38120206,114660.0,114650.0,0.1091601]
[1758502348498,0.40444204,114660.0,114650.0,1.42069648]
[1758502348697,0.40444204,114660.0,114650.0,1.39869648]
[1758502348889,0.3608,114660.0,114650.0,1.64869648]
[1758502349091,0.3609,114670.0,114660.0,0.0997725]
[1758502349302,0.3609,114670.0,114660.0,0.43979888]
[1758502349303,0.3608,114670.0,114660.0,0.43979888]
[1758502349996,0.3608,114670.0,114660.0,1.39787888]
[1758502350398,0.3608,114670.0,114660.0,0.95844]
[1758502350601,0.64764081,114670.0,114660.0,0.0004]
[1758502351003,0.64764081,114670.0,114660.0,0.95724]
[1758502351204,0.64764081,114670.0,114660.0,0.95764]
[1758502351895,0.62431,114670.0,114660.0,0.95764]
[1758502352499,0.63631,114670.0,114660.0,0.95864]
[1758502353196,0.63631,114670.0,114660.0,0.95584]
[1758502353396,0.97633638,114670.0,114660.0,0.95584]
[1758502353719,0.63631,114670.0,114660.0,0.95584]
[1758502354008,0.97633638,114670.0,114660.0,0.95584]
[1758502354199,0.97633638,114670.0,114660.0,1.0429927]
[1758502354398,0.63631,114670.0,114660.0,1.0429927]
[1758502354604,0.38631,114670.0,114660.0,1.0429927]
[1758502355408,0.3728,114670.0,114660.0,1.39644908]
[1758502356009,0.3728,114670.0,114660.0,1.0637927]
[1758502356514,0.3728,114670.0,114660.0,0.1105527]
[1758502356711,0.3728,114670.0,114660.0,1.0633527]
[1758502358316,0.3728,114670.0,114660.0,1.41680908]
[1758502358810,0.3728,114670.0,114660.0,1.66680908]
[1758502359405,0.3728,114670.0,114660.0,1.41680908]
[1758502359912,0.99831638,114670.0,114660.0,0.001]
[1758502360213,0.68155952,114670.0,114660.0,0.95128]
[1758502360403,1.0215859,114670.0,114660.0,0.001]
[1758502360606,1.0215859,114670.0,114660.0,0.95076]
[1758502360805,1.0215859,114670.0,114660.0,0.0014]
[1758502361111,1.0215859,114670.0,114660.0,0.9506]
[1758502361311,1.0095859,114670.0,114660.0,0.0004]
[1758502361505,1.0155859,114670.0,114660.0,0.001]
[1758502361702,1.1384059,114670.0,114660.0,0.0014]
[1758502361908,1.16928623,114670.0,114660.0,0.001]
[1758502362208,1.17328623,114670.0,114660.0,0.0014]
[1758502362913,0.01351,114640.0,114630.0,1.9254554]
[1758502363209,1.0984059,114640.0,114630.0,1.9254554]
[1758502363509,0.75837952,114640.0,114630.0,2.8736154]
[1758502363914,0.74486952,114640.0,114630.0,3.21364178]
[1758502364113,0.7216,114640.0,114630.0,3.47716178]
[1758502364616,0.7216,114640.0,114630.0,3.1265754]
[1758502364617,0.74492605,114640.0,114630.0,3.1265754]
[1758502364815,0.75392605,114640.0,114630.0,3.1265754]
[1758502365007,0.75392605,114640.0,114630.0,3.1269754]
[1758502365521,0.75392605,114640.0,114630.0,3.1262554]
[1758502366013,0.76743605,114640.0,114630.0,1.9268554]
[1758502366312,1.10746243,114640.0,114630.0,1.9268554]
[1758502366519,1.10746243,114640.0,114630.0,1.9264554]
[1758502366711,1.35746243,114640.0,114630.0,2.8747361]
[1758502366910,1.37944243,114640.0,114630.0,0.0885761]
[1758502367210,1.37944243,114640.0,114630.0,1.0364561]
[1758502367411,1.03941605,114640.0,114630.0,1.0368561]
[1758502368510,1.03941605,114640.0,114630.0,0.94968]
[1758502368820,1.03941605,114640.0,114630.0,1.0368561]
[1758502369409,0.78941605,114640.0,114630.0,1.0345761]
[1758502371517,0.75392605,114640.0,114630.0,1.0345761]
[1758502371714,0.39312605,114640.0,114630.0,1.63812248]
[1758502372616,0.009,114640.0,114630.0,1.63812248]
[1758502373019,0.3698,114640.0,114630.0,1.65640248]
[1758502374020,0.3698,114640.0,114630.0,0.3605762]
[1758502374320,0.42851271,114640.0,114630.0,0.96372]
[1758502374521,0.41497271,114640.0,114630.0,1.0504962]
[1758502374714,0.41497271,114640.0,114630.0,1.39092258]
[1758502375315,0.03219271,114640.0,114630.0,1.40456258]
[1758502375624,0.009,114640.0,114630.0,1.65404258]
[1758502375817,0.39300694,114640.0,114630.0,1.3140162]
[1758502376022,0.39300694,114640.0,114630.0,0.3742162]
[1758502376231,0.41588694,114640.0,114630.0,1.21268]
[1758502376521,0.41588694,114640.0,114630.0,1.2994562]
[1758502376722,0.41588694,114640.0,114630.0,1.2998562]
[1758502377821,0.39300694,114640.0,114630.0,1.3134962]
[1758502378021,0.39300694,114640.0,114630.0,1.65352258]
[1758502378423,0.39300694,114640.0,114630.0,1.3134962]
[1758502378625,0.009,114640.0,114630.0,1.65352258]
[1758502380515,0.009,114640.0,114630.0,1.5828658]
[1758502380729,0.009,114640.0,114630.0,1.9436658]
[1758502381026,1e-07,114640.0,114630.0,1.9436658]
[1758502381216,0.0001,114660.0,114650.0,0.1240713]
[1758502381420,0.4038561,114670.0,114660.0,0.1104237]
[1758502381624,0.42684811,114670.0,114660.0,1.0441437]
[1758502381818,0.42684811,114670.0,114660.0,1.0437837]
[1758502382120,0.44038811,114670.0,114660.0,1.0437837]
[1758502382826,0.44038811,114670.0,114660.0,1.0433437]
[1758502383231,0.44038811,114670.0,114660.0,1.0427837]
[1758502383919,0.69038811,114670.0,114660.0,1.0195137]
[1758502384129,0.69038811,114670.0,114660.0,1.0193137]
[1758502384326,0.69338811,114670.0,114660.0,1.0193137]
[1758502385027,0.69338811,114670.0,114660.0,1.0190337]
[1758502386030,0.67984811,114670.0,114660.0,1.0190337]
[1758502386428,0.42984811,114670.0,114660.0,1.0190337]
[1758502387021,0.42984811,114670.0,114660.0,0.1108237]
[1758502387222,0.44338811,114670.0,114660.0,0.1108237]
[1758502387717,0.96275771,114670.0,114660.0,0.0004]
[1758502387931,0.96275771,114670.0,114660.0,0.087154]
[1758502388225,0.69338811,114670.0,114660.0,0.0004]
[1758502388423,0.96275771,114670.0,114660.0,0.0004]
[1758502388822,0.03642,114660.0,114650.0,0.0001]
[1758502389029,0.03642,114650.0,114640.0,0.0880654]
[1758502389331,4e-08,114670.0,114660.0,0.1232539]
[1758502389625,0.36934632,114690.0,114680.0,0.1010987]
[1758502389822,0.36934632,114690.0,114680.0,1.3224083]
[1758502390025,0.3250192,114690.0,114680.0,1.3224083]
[1758502390430,0.3608,114700.0,114690.0,0.1232311]
[1758502390633,0.3609,114700.0,114690.0,0.1232311]
[1758502391135,0.38197,114700.0,114690.0,0.1232311]
[1758502391529,0.3609,114700.0,114690.0,0.1232311]
[1758502391929,0.3609,114700.0,114690.0,0.3926007]
[1758502392131,0.0001,114700.0,114690.0,1.3224007]
[1758502392831,0.0001,114700.0,114690.0,1.3223607]
[1758502393024,0.0061,114700.0,114690.0,1.3223607]
[1758502393429,0.3669,114700.0,114690.0,1.3223207]
[1758502393627,0.9073396,114700.0,114680.0,0.1011971]
[1758502393822,0.38187,114690.0,114680.0,0.0362]
[1758502394022,0.38187,114690.0,114680.0,0.92972]
[1758502394023,0.6587796,114690.0,114680.0,0.92972]
[1758502394227,0.6587796,114690.0,114670.0,0.0009]
[1758502394228,0.9087796,114690.0,114670.0,0.0009]
[1758502394428,0.9087796,114690.0,114670.0,0.92978]
[1758502394429,0.38187,114680.0,114670.0,0.92978]
[1758502394636,0.38187,114680.0,114670.0,0.93008]
[1758502394834,0.38187,114680.0,114670.0,0.0004]
[1758502395130,0.63187,114680.0,114670.0,0.93008]
[1758502395335,0.63187,114680.0,114670.0,0.93004]
[1758502395723,0.9147796,114680.0,114670.0,0.93004]
[1758502395926,0.9147796,114680.0,114660.0,0.0001]
[1758502395927,0.64541,114680.0,114660.0,0.0001]
[1758502396237,0.38187,114670.0,114660.0,0.92974]
[1758502396430,0.38941,114670.0,114660.0,0.92964]
[1758502396624,0.38941,114670.0,114660.0,0.0004]
[1758502396830,0.63941,114670.0,114660.0,0.0004]
[1758502397227,0.63941,114670.0,114660.0,0.93]
[1758502397841,0.64441,114670.0,114660.0,0.0004]
[1758502398036,0.9137796,114670.0,114660.0,0.0004]
[1758502398428,0.64441,114670.0,114660.0,0.087154]
[1758502398628,0.64441,114670.0,114660.0,0.087554]
[1758502398832,0.64441,114670.0,114660.0,0.0004]
[1758502399540,0.64441,114670.0,114650.0,1.0168611]
[1758502399734,0.39451,114670.0,114660.0,0.0004]
[1758502399930,0.75521,114670.0,114660.0,0.0004]
[1758502400331,1.0245796,114670.0,114660.0,0.0004]
[1758502400535,0.03504,114660.0,114650.0,0.92966]
[1758502400740,0.39584,114660.0,114650.0,0.92956]
[1758502401436,0.41832,114660.0,114650.0,1.0167215]
[1758502401630,0.40435,114660.0,114650.0,1.0528215]
[1758502401932,0.38187,114660.0,114650.0,1.0528215]
[1758502402330,0.38187,114660.0,114650.0,0.96566]
[1758502402535,0.38187,114660.0,114650.0,1.0528216]
[1758502403239,0.38487,114660.0,114650.0,1.0528216]
[1758502404739,0.38487,114660.0,114650.0,0.96566]
[1758502404935,0.6670496,114660.0,114650.0,0.92952]
[1758502405440,0.6670496,114660.0,114640.0,1.83738]
[1758502405644,0.6610296,114650.0,114640.0,0.93034]
[1758502405939,0.6610296,114650.0,114630.0,0.9435]
[1758502406138,0.38295,114640.0,114630.0,0.9443]
[1758502406439,0.38295,114640.0,114630.0,1.0537568]
[1758502406637,0.6651296,114640.0,114630.0,0.0008]
[1758502406941,0.6651296,114640.0,114620.0,0.9295]
[1758502407136,0.38295,114630.0,114620.0,0.9303]
[1758502407440,0.39152341,114630.0,114620.0,0.95178]
[1758502407644,0.39152341,114630.0,114620.0,0.95218]
[1758502408047,0.39152341,114630.0,114620.0,1.0393642]
[1758502408539,0.39152341,114630.0,114620.0,0.95218]
[1758502408742,0.39152341,114630.0,114620.0,1.0393642]
[1758502409338,0.39152341,114630.0,114620.0,1.0531542]
[1758502409739,0.39152341,114630.0,114620.0,0.96597]
[1758502409941,0.39152341,114630.0,114620.0,1.0531544]
[1758502410538,0.66916301,114630.0,114620.0,0.0014]
[1758502411041,0.91916301,114630.0,114620.0,0.001]
[1758502411241,0.91916301,114630.0,114620.0,0.0014]
[1758502411441,0.91916301,114630.0,114620.0,0.001]
[1758502411638,0.91916301,114630.0,114620.0,0.0014]
[1758502411840,0.91916301,114630.0,114620.0,0.001]
[1758502412239,0.91916301,114630.0,114620.0,0.0014]
[1758502413645,1.06396301,114630.0,114620.0,0.0014]
[1758502414445,1.99312301,114630.0,114620.0,0.001]
[1758502414646,1.99312301,114630.0,114620.0,0.0014]
[1758502414847,1.06396301,114630.0,114620.0,0.0014]
[1758502415248,1.99304301,114630.0,114620.0,0.0014]
[1758502415954,1.99308301,114630.0,114620.0,0.0014]
[1758502416148,2.01343627,114630.0,114620.0,0.0014]
[1758502418947,1.08431627,114630.0,114620.0,0.0014]
[1758502419249,0.83431627,114630.0,114620.0,0.0014]
[1758502419442,1.76323627,114630.0,114620.0,0.0014]
[1758502420356,0.56494667,114630.0,114620.0,0.0014]
[1758502420548,0.41187667,114630.0,114620.0,0.3737543]
[1758502421948,0.69405627,114630.0,114620.0,0.0014]
[1758502423049,0.69405627,114630.0,114620.0,0.001]
[1758502423352,0.69405627,114630.0,114620.0,0.0014]
[1758502423553,0.41187667,114630.0,114620.0,0.3609642]
[1758502423758,0.41187667,114630.0,114620.0,0.3737542]
[1758502423956,0.38972667,114630.0,114620.0,0.3737542]
[1758502424247,0.41187667,114630.0,114620.0,0.3737542]
[1758502428049,0.39152341,114630.0,114620.0,0.3737542]
[1758502429156,0.36937341,114630.0,114620.0,0.3737542]
[1758502429749,0.36937341,114630.0,114620.0,0.6431238]
[1758502429957,0.36937341,114630.0,114620.0,1.3018342]
[1758502431155,0.36937341,114630.0,114620.0,0.3737542]
[1758502431958,0.36937341,114630.0,114620.0,1.3016742]
[1758502433158,0.00857341,114630.0,114620.0,1.3016742]
[1758502433360,0.42975379,114640.0,114630.0,0.1223466]
[1758502433863,0.45190379,114640.0,114630.0,0.1223466]
[1758502434063,0.38295,114640.0,114630.0,0.1223466]
[1758502434555,0.38395,114640.0,114630.0,0.1223466]
[1758502435259,0.39276073,114640.0,114630.0,0.1223466]
[1758502435857,0.001,114640.0,114630.0,0.6417162]
[1758502436063,0.001,114640.0,114630.0,1.2997066]
[1758502436267,0.001,114640.0,114630.0,0.6417162]
[1758502436460,0.001,114640.0,114630.0,1.5690762]
[1758502436962,0.001,114640.0,114630.0,1.6605066]
[1758502437264,0.001,114640.0,114630.0,0.7331466]
[1758502437563,0.001,114640.0,114630.0,1.9297162]
[1758502437765,0.3608,114650.0,114640.0,0.1235089]
[1758502437958,0.3608,114650.0,114640.0,0.3928785]
[1758502438152,0.3608,114650.0,114640.0,0.1235089]
[1758502438353,0.36937206,114650.0,114640.0,1.0506289]
[1758502438552,0.36937206,114650.0,114640.0,0.1235089]
[1758502438859,0.36937206,114650.0,114640.0,1.0509489]
[1758502439255,0.39216206,114650.0,114640.0,1.0508689]
[1758502439464,0.39216206,114650.0,114640.0,1.0504689]
[1758502439665,0.39216206,114650.0,114640.0,0.03674]
[1758502439972,0.02279,114630.0,114620.0,0.03586]
[1758502440264,1.0244096,114630.0,114620.0,0.02387]
[1758502440566,1.0244096,114630.0,114610.0,0.01279]
[1758502440567,1.1914817,114630.0,114610.0,0.01279]
[1758502440767,0.8113121,114630.0,114620.0,0.0004]
[1758502440955,0.9221121,114630.0,114610.0,0.01327]
[1758502441160,0.3608,114620.0,114610.0,0.124331]
[1758502441570,0.3608,114620.0,114610.0,0.03714]
[1758502441571,0.38359,114620.0,114610.0,0.03714]
[1758502442068,0.38259,114620.0,114610.0,0.03714]
[1758502442363,0.9126096,114620.0,114610.0,0.0008]
[1758502442566,0.98253734,114620.0,114600.0,1.0271056]
[1758502442769,0.98253734,114620.0,114610.0,0.0004]
[1758502442770,0.73253734,114620.0,114610.0,0.0004]
[1758502442966,1.09333734,114620.0,114610.0,0.0004]
[1758502443565,1.36563271,114620.0,114610.0,0.0004]
[1758502443964,1.36563271,114620.0,114600.0,1.0271056]
[1758502444171,1.36563271,114620.0,114600.0,1.0279056]
[1758502444172,0.3608,114610.0,114600.0,1.0279056]
[1758502444384,0.3588,114610.0,114600.0,1.0279056]
[1758502444672,0.3588,114610.0,114600.0,1.61720294]
[1758502445169,0.3588,114610.0,114600.0,1.62120294]
[1758502445556,0.72088734,114610.0,114600.0,0.04114]
[1758502445870,0.72088734,114610.0,114600.0,0.96662]
[1758502446063,0.72088734,114610.0,114600.0,1.0538194]
[1758502446570,0.38159,114610.0,114600.0,1.0542194]
[1758502447071,0.38159,114610.0,114600.0,0.1279394]
[1758502447265,0.38159,114610.0,114600.0,0.96686]
[1758502447266,0.72088734,114610.0,114600.0,0.96686]
[1758502448473,0.72088734,114610.0,114600.0,0.04074]
[1758502448671,0.98153734,114610.0,114600.0,0.02747]
[1758502448867,1.00384865,114610.0,114600.0,0.02707]
[1758502449061,1.00384865,114610.0,114600.0,0.02747]
[1758502450766,1.00384865,114610.0,114600.0,0.02347]
[1758502450971,1.00784865,114610.0,114600.0,0.02347]
[1758502451576,0.66855131,114610.0,114600.0,0.02347]
[1758502451759,0.40790131,114610.0,114600.0,0.1236096]
[1758502452068,0.38559,114610.0,114600.0,0.1236096]
[1758502454665,0.38559,114610.0,114600.0,0.46290694]
[1758502454866,0.3628,114610.0,114600.0,0.46290694]
[1758502455066,0.3628,114610.0,114600.0,0.1236096]
[1758502455576,0.38455,114610.0,114600.0,0.03641]
[1758502455776,0.38455,114610.0,114600.0,0.1236096]
[1758502457773,0.38455,114610.0,114600.0,0.1236095]
[1758502457974,0.38455,114610.0,114600.0,0.1232095]
[1758502458165,0.38455,114610.0,114600.0,0.1236095]
[1758502459977,0.3628,114610.0,114600.0,0.71290684]
[1758502460281,0.004,114610.0,114600.0,0.3736095]
[1758502460468,0.004,114610.0,114600.0,0.71290684]
[1758502462774,0.004,114610.0,114600.0,0.1236095]
[1758502462775,0.38655,114610.0,114600.0,0.1236095]
[1758502462980,0.72584734,114610.0,114600.0,0.03641]
[1758502463182,0.73649734,114610.0,114600.0,0.96065]
[1758502463478,0.73649734,114610.0,114600.0,0.96025]
[1758502463979,0.73649734,114610.0,114600.0,0.0004]
[1758502464279,0.98649734,114610.0,114600.0,0.92444]
[1758502464479,0.98649734,114610.0,114600.0,0.92404]
[1758502464676,0.98649734,114610.0,114600.0,0.92444]
[1758502465382,0.97584734,114610.0,114600.0,0.95933]
[1758502466183,0.98649734,114610.0,114600.0,0.95933]
[1758502467081,0.98649734,114610.0,114600.0,0.03529]
[1758502467282,0.98649734,114610.0,114600.0,0.94631]
[1758502467470,0.98649734,114610.0,114600.0,0.0004]